bitfinex/quotes_ETHUSD_20251110
["timestamp","ask_amount","ask_price","bid_price","bid_amount"]
[1762785394352,26.00925692,3603.1,3603.0,769.41066874]
[1762785394547,45.81825692,3603.1,3603.0,768.89381845]
[1762785394710,25.72975692,3603.1,3603.0,734.92890082]
[1762785394912,25.86304647,3603.1,3603.0,712.68675961]
[1762785395109,55.17304647,3603.1,3603.0,712.33733815]
[1762785395311,55.86404647,3603.1,3603.0,708.79465407]
[1762785395545,56.00934155,3603.1,3603.0,708.01678799]
[1762785395715,55.73084155,3603.1,3603.0,701.45178799]
[1762785395922,55.73084155,3603.1,3603.0,699.93778799]
[1762785396130,55.73084155,3603.1,3603.0,699.34178799]
[1762785396318,25.73084155,3603.1,3603.0,656.8774868]
[1762785396523,25.73084155,3603.1,3603.0,624.53377744]
[1762785396719,25.73084155,3603.1,3603.0,598.55848744]
[1762785396944,25.73084155,3603.1,3603.0,575.73848744]
[1762785397244,25.91884647,3603.1,3603.0,546.97461222]
[1762785397545,25.91884647,3603.1,3603.0,545.91388209]
[1762785397841,25.91884647,3603.1,3603.0,541.45669833]
[1762785398041,25.91884647,3603.1,3603.0,541.31135931]
[1762785398346,55.91884647,3603.1,3603.0,541.23235931]
[1762785398685,60.76415911,3603.1,3603.0,541.23235931]
[1762785398837,60.76415911,3603.1,3603.0,489.38106931]
[1762785399179,60.76415911,3603.1,3603.0,484.64666073]
[1762785399180,59.67374005,3603.1,3603.0,484.64666073]
[1762785399477,59.67374005,3603.1,3603.0,481.7054841]
[1762785399478,158.54682858,3603.1,3603.0,481.7054841]
[1762785399634,159.67286139,3603.1,3603.0,479.7061941]
[1762785399836,167.67286139,3603.1,3603.0,477.70290601]
[1762785400358,167.52754875,3603.1,3603.0,477.55760828]
[1762785400554,167.52754875,3603.1,3603.0,475.797784]
[1762785400943,65.29933675,3603.1,3603.0,475.797784]
[1762785401147,64.53000394,3603.1,3603.0,475.797784]
[1762785401348,65.22100394,3603.1,3603.0,475.797784]
[1762785401549,65.3662997,3603.1,3603.0,475.77339266]
[1762785401760,59.90254674,3603.1,3603.0,475.77339266]
[1762785402037,61.40554674,3603.1,3603.0,475.77339266]
[1762785402397,59.12251496,3603.1,3603.0,475.77339266]
[1762785402571,46.24401225,3603.1,3603.0,475.77339266]
[1762785402878,46.24401225,3603.1,3603.0,475.28580094]
[1762785402879,59.06799576,3603.1,3603.0,475.28580094]
[1762785403047,58.58629576,3603.1,3603.0,475.28580094]
[1762785403375,58.62121482,3603.1,3603.0,474.73580094]
[1762785403675,59.50841882,3603.1,3603.0,474.73580094]
[1762785404359,29.47349976,3603.1,3603.0,189.67353699]
[1762785404547,29.47349976,3603.1,3601.1,0.01]
[1762785404548,0.09999999,3597.7,3592.5,0.00706335]
[1762785404890,30.0,3597.5,3592.6,0.32367943]
[1762785405181,0.1838,3600.9,3597.1,0.1783]
[1762785405342,0.05,3600.6,3597.1,0.1783]
[1762785405542,10.431,3600.5,3597.1,0.1783]
[1762785405857,0.14532138,3600.8,3600.7,0.1783]
[1762785406070,15.315,3601.2,3600.7,0.1783]
[1762785406272,0.692,3601.1,3600.7,0.1783]
[1762785406575,40.692,3601.1,3600.7,0.1783]
[1762785406738,7.7785,3600.8,3600.7,0.1783]
[1762785406938,7.7785,3600.8,3600.7,0.1483]
[1762785407139,7.7785,3600.8,3600.7,0.1183]
[1762785407472,8.01,3600.9,3600.7,0.4149]
[1762785407984,0.14530009,3600.8,3599.2,0.06]
[1762785408142,0.14450009,3600.8,3599.2,0.06]
[1762785408338,0.14450009,3600.8,3599.3,0.2966]
[1762785408674,30.0,3600.7,3599.3,0.2966]
[1762785408839,30.0,3600.6,3599.3,0.2966]
[1762785409044,0.14450009,3600.8,3599.3,0.2966]
[1762785409450,0.693,3600.7,3599.3,0.2966]
[1762785409663,7.5,3599.4,3599.3,0.2966]
[1762785409884,8.193,3599.4,3599.3,0.2966]
[1762785410853,8.598504,3599.4,3599.3,0.2966]
[1762785411073,8.193,3599.4,3599.3,0.2966]
[1762785411661,8.598504,3599.4,3599.3,0.2966]
[1762785411859,10.101504,3599.4,3599.3,0.2966]
[1762785412188,18.101504,3599.4,3599.3,0.2966]
[1762785412744,17.696,3599.4,3599.3,0.2966]
[1762785413783,10.196,3599.4,3599.3,0.2966]
[1762785414496,8.0,3599.4,3599.3,0.2966]
[1762785415187,10.195,3599.4,3599.3,0.2966]
[1762785415371,8.0,3599.4,3599.3,0.2966]
[1762785415577,10.195,3599.4,3599.3,0.2966]
[1762785416761,8.0,3599.4,3599.3,0.2966]
[1762785416966,10.194,3599.4,3599.3,0.2966]
[1762785417281,3.6,3599.4,3599.3,0.2966]
[1762785417495,2.194,3599.4,3599.3,0.2966]
[1762785417672,1.503,3600.4,3599.3,0.2966]
[1762785418000,2.194,3600.3,3599.3,0.2966]
[1762785419996,2.194,3600.3,3599.4,0.2966]
[1762785419997,7.905504,3600.2,3599.4,0.2966]
[1762785420598,7.905504,3600.2,3599.2,0.06]
[1762785420599,7.5,3599.4,3599.2,0.06]
[1762785420908,1.098504,3599.3,3599.2,0.3566]
[1762785421071,1.098504,3599.3,3599.2,0.06]
[1762785421585,1.098504,3599.3,3598.1,0.0683]
[1762785421586,0.405504,3599.2,3598.1,0.0683]
[1762785421909,0.405504,3599.0,3598.1,0.0683]
[1762785422210,0.405504,3598.8,3598.1,0.0683]
[1762785422408,0.405504,3598.8,3598.1,0.3649]
[1762785422616,0.405504,3598.8,3598.1,0.0683]
[1762785422829,0.694,3598.9,3598.1,0.0683]
[1762785422830,7.905504,3598.2,3598.1,0.0683]
[1762785423131,8.54649054,3598.2,3598.1,0.01]
[1762785423423,16.54649054,3598.2,3598.1,0.01]
[1762785423839,16.54649054,3598.2,3597.2,0.2966]
[1762785423840,0.405504,3598.1,3597.2,0.2966]
[1762785423978,0.405504,3598.1,3594.1,0.01]
[1762785423979,0.405504,3597.2,3594.1,0.01]
[1762785424286,0.405504,3597.2,3592.8,0.1783]
[1762785424287,0.077,3594.0,3592.8,0.1783]
[1762785424486,0.698,3593.9,3592.8,0.1783]
[1762785424821,0.0686,3594.0,3593.2,0.2483]
[1762785425041,0.0686,3594.0,3593.3,0.02782957]
[1762785425171,0.0686,3594.0,3593.2,0.2483]
[1762785425376,0.0686,3594.0,3593.3,0.02782957]
[1762785425712,7.5,3596.0,3593.3,0.43333357]
[1762785425911,7.5,3596.0,3593.5,0.405504]
[1762785426226,0.699,3595.9,3593.5,0.405504]
[1762785426572,0.709,3595.9,3592.9,0.405504]
[1762785427477,0.709,3595.9,3592.8,0.1783]
[1762785427807,8.209,3595.9,3592.8,0.1783]
[1762785428692,7.5,3595.2,3592.8,0.1783]
[1762785428919,0.699,3595.1,3592.8,0.1783]
[1762785429141,0.8859,3595.1,3593.3,0.002]
[1762785429647,7.5,3593.7,3593.3,0.002]
[1762785429844,0.699,3593.6,3593.3,0.002]
[1762785430051,0.699,3593.6,3592.9,0.002]
[1762785430637,7.5,3593.6,3592.9,0.002]
[1762785430813,0.699,3593.5,3592.9,0.002]
[1762785431315,0.4659,3593.4,3592.9,0.002]
[1762785431507,7.5,3593.2,3592.9,0.002]
[1762785432010,9.004,3593.2,3592.9,0.002]
[1762785432241,9.0032,3593.2,3592.9,0.002]
[1762785434215,9.4691,3593.2,3592.9,0.002]
[1762785434434,9.0032,3593.2,3592.9,0.002]
[1762785434945,9.5032,3593.2,3592.9,0.002]
[1762785436381,0.6,3590.0,3587.8,0.405504]
[1762785436679,0.704,3589.9,3587.8,0.405504]
[1762785436861,9.5032,3593.2,3587.8,0.405504]
[1762785437240,0.4659,3593.1,3587.7,0.78572103]
[1762785437440,0.56589999,3593.1,3587.8,0.02787223]
[1762785437749,7.5,3591.7,3587.1,0.01]
[1762785438073,0.704,3591.6,3587.1,0.01]
[1762785438479,0.09999999,3589.9,3587.1,0.01]
[1762785438689,2.21,3589.8,3587.1,0.01]
[1762785438984,7.5,3588.6,3587.1,0.01]
[1762785439438,0.01,3589.9,3587.2,0.02787689]
[1762785439638,0.01,3589.9,3587.3,0.405504]
[1762785439833,0.01,3589.9,3587.5,0.405504]
[1762785440089,0.01,3589.9,3587.1,0.01]
[1762785440265,0.01,3589.9,3587.3,0.405504]
[1762785440461,0.01,3589.9,3587.5,0.405504]
[1762785440663,0.294,3589.8,3587.1,0.01]
[1762785442544,0.294,3589.8,3587.2,0.02787689]
[1762785442753,0.294,3589.8,3587.1,0.01]
[1762785443674,7.5,3589.4,3587.1,0.01]
[1762785443895,0.718,3589.3,3587.1,0.01]
[1762785444070,7.5,3589.4,3587.1,0.01]
[1762785444277,0.718,3589.3,3587.1,0.01]
[1762785445482,0.01,3589.9,3587.1,0.01]
[1762785445706,1.651,3589.8,3587.1,0.01]
[1762785446018,1.33989296,3589.7,3587.1,0.01]
[1762785446226,1.651,3589.8,3587.1,0.01]
[1762785446523,3.04818138,3589.8,3587.1,0.01]
[1762785447271,1.651,3589.8,3587.1,0.01]
[1762785447477,1.33989296,3589.7,3587.1,0.01]
[1762785448799,1.651,3589.8,3587.1,0.01]
[1762785448800,8.83871694,3589.5,3587.1,0.01]
[1762785449132,1.35170023,3589.4,3587.1,0.01]
[1762785449272,9.02921694,3589.5,3587.1,0.01]
[1762785449480,1.30521418,3589.3,3587.1,0.01]
[1762785449775,1.30521418,3589.3,3587.1,1e-08]
[1762785449776,1.36538057,3588.7,3587.1,1e-08]
[1762785450084,0.718,3588.6,3587.1,1e-08]
[1762785450494,1.3364572,3588.5,3587.1,1e-08]
[1762785450870,7.5,3588.3,3587.1,1e-08]
[1762785451270,7.5,3588.3,3584.1,0.01]
[1762785451271,1.39684715,3586.0,3584.1,0.01]
[1762785451504,2.23,3585.9,3584.2,0.02790022]
[1762785451706,2.1613,3588.2,3584.1,0.0203]
[1762785451707,0.724,3585.8,3584.1,0.0203]
[1762785451905,0.724,3585.7,3584.3,0.405504]
[1762785452113,0.725,3585.6,3584.5,0.405504]
[1762785452305,7.5,3587.5,3584.1,0.01]
[1762785452624,0.725,3587.4,3584.1,0.01]
[1762785453154,1.31618785,3587.1,3584.1,0.01]
[1762785453322,1.3749023,3587.3,3584.1,0.01]
[1762785453709,0.725,3587.4,3584.1,0.01]
[1762785454147,0.01,3586.9,3584.1,0.01]
[1762785454355,1.38095055,3586.8,3584.1,0.01]
[1762785454563,0.724,3586.7,3584.1,0.01]
[1762785454711,2.05097521,3586.7,3584.1,0.01]
[1762785454905,1.39005097,3586.6,3584.1,0.01]
[1762785455277,0.724,3586.7,3584.1,0.01]
[1762785456050,1.39005097,3586.6,3584.1,0.01]
[1762785456231,1.36129049,3586.6,3584.1,0.01]
[1762785456562,0.724,3586.7,3584.1,0.01]
[1762785456841,1.38511586,3586.5,3584.1,0.01]
[1762785457041,0.4648,3586.6,3584.1,0.01]
[1762785457346,0.1905,3586.4,3584.1,0.01]
[1762785457693,7.6905,3586.4,3584.1,0.01]
[1762785457807,1.34308617,3586.3,3584.1,0.01]
[1762785458010,7.5,3586.4,3584.1,0.01]
[1762785458316,3.57508617,3586.3,3584.1,0.01]
[1762785458658,2.232,3586.3,3584.1,0.01]
[1762785459319,1.35128689,3586.2,3584.1,0.01]
[1762785459646,0.01446364,3586.1,3584.1,0.01]
[1762785459806,1.31229372,3586.0,3584.1,0.01]
[1762785461019,0.01446364,3586.1,3584.1,0.01]
[1762785461221,1.31229372,3586.0,3584.1,0.01]
[1762785461420,0.01446364,3586.1,3584.1,0.01]
[1762785461620,0.01446364,3586.1,3584.3,0.405504]
[1762785461918,0.01446364,3586.1,3583.1,0.03]
[1762785461919,1.507,3586.0,3583.3,0.193]
[1762785462118,1.507,3585.9,3584.0,0.193]
[1762785462554,1.507,3585.9,3585.8,0.193]
[1762785462709,1.507,3585.9,3585.8,0.4786]
[1762785462911,1.507,3585.9,3585.8,0.6716]
[1762785463126,2.235,3585.9,3584.0,0.193]
[1762785463321,2.235,3585.9,3584.1,0.002]
[1762785463958,2.235,3585.9,3584.3,0.405504]
[1762785464161,0.728,3585.9,3585.1,0.01]
[1762785464308,7.46,3587.9,3587.1,0.008]
[1762785464638,0.001,3587.5,3585.2,0.395504]
[1762785464949,0.001,3587.5,3585.3,0.1402]
[1762785465115,0.001,3587.5,3587.4,0.1402]
[1762785465622,0.729,3587.5,3587.4,0.5607]
[1762785467349,0.729,3587.5,3587.4,0.966204]
[1762785469364,0.729,3587.5,3587.4,0.5607]
[1762785470272,0.728,3587.5,3587.4,0.5607]
[1762785471442,0.728,3587.5,3587.4,0.966204]
[1762785472366,0.01,3587.9,3587.5,0.405504]
[1762785472569,0.01,3588.9,3587.5,0.825004]
[1762785472874,1.507,3590.8,3588.9,0.405504]
[1762785473073,9.017,3591.9,3588.9,0.405504]
[1762785473074,1.507,3591.0,3589.8,0.1402]
[1762785473275,9.017,3591.9,3589.9,0.405504]
[1762785473276,7.51,3591.9,3589.9,0.405504]
[1762785473435,1.507,3591.6,3589.9,0.795004]
[1762785473832,1.507,3591.6,3590.0,0.3895]
[1762785474032,0.728,3590.8,3590.0,0.3895]
[1762785475835,0.728,3590.8,3589.8,0.1402]
[1762785475836,1.36045936,3590.7,3589.8,0.1402]
[1762785476071,0.728,3590.8,3589.8,0.1402]
[1762785476574,1.36045936,3590.7,3589.8,0.1402]
[1762785477474,0.728,3590.8,3589.8,0.1402]
[1762785477677,0.728,3590.8,3588.9,0.3895]
[1762785477886,1.36045936,3590.7,3588.9,0.3895]
[1762785478093,1.36045936,3590.7,3588.9,0.33378659]
[1762785478951,0.467,3590.8,3588.9,0.33378659]
[1762785479194,0.01,3590.9,3589.0,0.405504]
[1762785479495,0.725,3590.7,3589.0,0.405504]
[1762785479847,0.725,3590.7,3588.8,0.1192]
[1762785480047,1.308051,3590.6,3588.9,0.3337]
[1762785480285,0.725,3590.7,3588.9,0.3337]
[1762785480875,0.467,3590.6,3588.8,0.1192]
[1762785481057,1.37837633,3590.5,3588.8,0.1192]
[1762785481552,1.39310098,3590.3,3588.8,0.1192]
[1762785482106,0.725,3590.7,3588.9,0.3337]
[1762785482269,1.37837633,3590.5,3588.9,0.3337]
[1762785482450,3.54418999,3590.6,3588.9,0.3337]
[1762785482653,2.23,3590.6,3588.9,0.3337]
[1762785482888,1.37837633,3590.5,3588.9,0.3337]
[1762785483085,2.23,3590.4,3588.9,0.3337]
[1762785483289,1.39310098,3590.3,3588.9,0.3337]
[1762785483865,2.23,3590.4,3588.1,0.01]
[1762785483866,1.33252471,3588.9,3588.1,0.01]
[1762785484191,2.08955441,3588.8,3588.1,0.01]
[1762785484994,7.5,3589.6,3588.2,0.0634]
[1762785484995,1.506,3589.4,3588.2,0.0634]
[1762785485195,0.724,3589.3,3588.3,0.3337]
[1762785486075,0.724,3589.2,3588.3,0.3337]
[1762785486296,0.724,3589.1,3588.3,0.3337]
[1762785486860,0.1,3591.0,3588.3,0.3337]
[1762785486861,1.30284773,3590.2,3588.3,0.3337]
[1762785487056,2.57245916,3590.0,3588.3,0.3337]
[1762785487261,1.31274716,3590.0,3588.3,0.3337]
[1762785487479,2.231,3590.1,3588.3,0.3337]
[1762785487683,0.477,3590.9,3588.4,0.405504]
[1762785487896,1.507,3590.5,3588.6,0.405504]
[1762785488090,1.259712,3590.4,3588.7,0.3337]
[1762785488408,1.39310098,3590.3,3588.7,0.3337]
[1762785488717,1.30284773,3590.2,3588.2,0.0634]
[1762785488919,1.39310098,3590.3,3588.3,0.36156834]
[1762785489066,2.231,3590.5,3588.3,0.3337]
[1762785489261,1.39310098,3590.3,3588.3,0.3337]
[1762785489681,1.86010098,3590.3,3588.3,0.3337]
[1762785489902,0.1929,3590.2,3588.3,0.3337]
[1762785490103,2.75545973,3590.2,3588.3,0.36156834]
[1762785490284,4.817973,3590.1,3588.3,0.36156834]
[1762785490479,0.724,3590.0,3588.4,0.405504]
[1762785490695,0.724,3590.0,3588.4,0.43337157]
[1762785490898,0.724,3590.0,3589.9,0.1302]
[1762785491278,0.724,3590.0,3589.9,0.4639]
[1762785491482,0.724,3590.0,3589.9,0.1302]
[1762785491693,0.724,3590.0,3589.6,0.1302]
[1762785493694,2.78334263,3592.9,3587.2,1.86117494]
[1762785493894,0.684004,3596.3,3587.2,1.86117494]
[1762785493895,1.39784785,3591.0,3589.3,0.1803]
[1762785494304,0.467,3591.2,3589.3,0.1803]
[1762785494511,1.00023743,3591.4,3589.3,0.1803]
[1762785494710,1.31975796,3591.3,3589.3,0.1803]
[1762785494908,0.722,3591.2,3589.3,0.1803]
[1762785495119,0.722,3591.2,3589.4,0.0278598]
[1762785495418,0.722,3591.2,3589.3,0.1803]
[1762785495807,0.722,3591.1,3589.5,0.405504]
[1762785496006,0.722,3591.0,3590.1,0.01]
[1762785496322,1.37987247,3591.6,3590.1,0.45370001]
[1762785496621,0.467,3591.7,3590.1,0.45370001]
[1762785496821,1.33677008,3591.4,3590.1,0.45370001]
[1762785497024,0.467,3591.7,3590.1,0.45370001]
[1762785497323,1.37987247,3591.6,3590.1,0.45370001]
[1762785497615,1.3132161,3591.5,3590.2,0.4537]
[1762785497817,1.3132161,3591.5,3590.1,1e-08]
[1762785497818,1.33677008,3591.4,3590.1,1e-08]
[1762785498017,0.467,3591.4,3590.1,1e-08]
[1762785498220,1.31326306,3591.3,3589.6,0.39800134]
[1762785498387,1.35152311,3591.2,3589.6,0.39800134]
[1762785498723,1.81852311,3591.2,3589.3,0.1803]
[1762785498887,1.30655086,3591.0,3589.3,0.1803]
[1762785499084,1.30655086,3591.0,3589.4,0.0278598]
[1762785499085,1.39870515,3590.8,3589.4,0.0278598]
[1762785499285,2.65841715,3590.8,3589.3,0.1803]
[1762785499518,0.467,3590.7,3589.3,0.1803]
[1762785499705,1.3011735,3590.6,3589.3,0.1803]
[1762785500101,1.35085745,3590.4,3589.3,0.1803]
[1762785500345,0.467,3590.5,3589.1,0.01]
[1762785500511,1.37414342,3590.2,3589.1,0.01]
[1762785500715,1.3582187,3590.0,3589.1,0.01]
[1762785501213,1.32006284,3589.8,3589.1,1e-08]
[1762785501829,1.78706284,3589.8,3589.1,1e-08]
[1762785502026,1.32945678,3589.6,3589.1,1e-08]
[1762785502223,2.58916878,3589.6,3589.1,1e-08]
[1762785502548,2.59572592,3589.4,3589.1,1e-08]
[1762785502909,1.34990467,3589.2,3588.3,0.002]
[1762785503340,0.467,3589.3,3588.3,0.002]
[1762785503341,0.1929,3589.1,3588.3,0.002]
[1762785503641,0.1929,3589.1,3588.3,0.02986834]
[1762785503956,1.3378991,3589.0,3588.3,0.002]
[1762785504323,0.718,3588.9,3588.3,0.002]
[1762785504537,1.39633524,3588.8,3588.3,0.002]
[1762785504719,2.10205673,3588.9,3588.3,0.002]
[1762785505051,1.39633524,3588.8,3588.3,0.002]
[1762785505424,0.718,3588.9,3588.3,0.002]
[1762785505743,1.39633524,3588.8,3588.3,0.002]
[1762785506074,0.718,3588.9,3588.3,0.002]
[1762785506215,1.506,3589.3,3588.4,0.4487]
[1762785506544,2.81627203,3589.3,3588.4,0.4487]
[1762785506714,1.506,3589.3,3588.3,0.002]
[1762785507147,1.37420495,3589.2,3588.3,0.002]
[1762785507319,0.718,3589.1,3588.3,0.002]
[1762785507526,1.36026114,3589.0,3588.3,0.002]
[1762785509577,1.81926114,3589.0,3588.3,0.002]
[1762785509768,1.39633524,3588.8,3588.3,0.002]
[1762785510275,0.459,3588.7,3588.3,0.002]
[1762785510477,3.35102148,3588.6,3588.3,0.002]
[1762785510978,2.09130948,3588.6,3588.3,0.002]
[1762785511153,0.459,3588.5,3588.3,0.002]
[1762785511473,1.32378765,3588.4,3588.3,0.002]
[1762785512886,1.78278765,3588.4,3588.3,0.002]
[1762785513044,1.88278765,3588.4,3587.9,1e-08]
[1762785513245,0.1842,3588.0,3587.9,1e-08]
[1762785513446,2.617912,3588.0,3587.9,1e-08]
[1762785513745,2.158912,3588.0,3587.9,1e-08]
[1762785514075,1.974712,3588.0,3587.9,1e-08]
[1762785515090,0.1,3587.8,3587.0,0.002]
[1762785515302,0.459,3587.9,3587.0,0.002]
[1762785515576,2.01752872,3587.8,3587.0,1e-08]
[1762785516290,1.3269883,3587.6,3587.0,1e-08]
[1762785516485,1.3269883,3587.6,3586.3,1e-08]
[1762785516646,1.38952435,3587.4,3586.3,1e-08]
[1762785516856,1.32695247,3587.2,3586.3,1e-08]
[1762785517275,1.32695247,3587.2,3586.0,0.6679]
[1762785517276,1.78595247,3587.2,3586.0,3e-08]
[1762785517443,1.78595247,3587.2,3585.1,0.01]
[1762785517444,1.33103563,3587.0,3585.1,0.4626]
[1762785517649,1.36204536,3586.8,3585.1,0.4626]
[1762785517874,2.59902324,3586.6,3585.6,0.4526]
[1762785518067,1.38875826,3586.4,3585.4,0.03632763]
[1762785518480,0.1803,3586.3,3585.4,0.03632763]
[1762785518687,1.35243837,3586.2,3585.4,0.03632763]
[1762785518980,1.30165827,3586.0,3585.4,0.03632763]
[1762785519487,1.39757177,3585.8,3585.1,0.01]
[1762785519784,0.717,3585.7,3585.1,0.01]
[1762785521281,1.55958993,3585.9,3585.4,0.002]
[1762785521760,0.459,3585.8,3585.4,0.002]
[1762785522117,1.39116132,3585.8,3585.4,0.002]
[1762785522267,0.1842,3585.9,3585.4,0.002]
[1762785522590,0.1803,3586.3,3585.4,0.002]
[1762785523229,0.716,3586.2,3585.6,0.405504]
[1762785523531,0.716,3586.2,3585.4,0.002]
[1762785523532,0.716,3586.1,3585.4,0.002]
[1762785523878,1.507,3586.9,3585.6,3.336504]
[1762785524209,0.001,3588.3,3586.0,3.336504]
[1762785524409,0.83781096,3588.0,3586.6,3.336504]
[1762785524580,0.001,3588.3,3586.8,0.405504]
[1762785525011,0.001,3588.3,3585.6,0.405504]
[1762785525282,0.716,3587.8,3585.6,0.405504]
[1762785525825,0.716,3587.8,3586.1,2.931]
[1762785525979,0.716,3587.8,3586.4,0.405504]
[1762785526185,0.717,3587.7,3586.6,0.405504]
[1762785526385,0.717,3587.7,3587.0,0.405504]
[1762785526722,0.717,3587.7,3587.0,3.336504]
[1762785527012,0.648,3588.2,3587.0,3.336504]
[1762785527404,0.001,3588.3,3587.7,2.931]
[1762785527604,0.001,3588.3,3586.6,6.99120301]
[1762785527605,0.001,3588.3,3587.8,3.6701544]
[1762785527807,0.001,3588.7,3587.8,3.6701544]
[1762785528120,0.001,3588.7,3588.4,3.336504]
[1762785528308,0.0002,3588.7,3588.4,3.336504]
[1762785528815,0.0002,3588.7,3588.4,0.405504]
[1762785529114,0.0002,3588.7,3588.6,0.405504]
[1762785529335,0.0002,3588.7,3588.6,3.336504]
[1762785529633,0.21,3590.8,3588.6,3.336504]
[1762785529797,0.21,3590.8,3588.6,0.405504]
[1762785530206,0.21,3590.8,3587.9,0.405504]
[1762785530824,1.39267558,3590.7,3587.9,0.405504]
[1762785531453,0.21,3590.8,3587.9,0.405504]
[1762785532101,0.21,3590.8,3588.4,0.405504]
[1762785532429,0.21,3590.8,3588.6,0.405504]
[1762785533194,0.01,3590.9,3588.6,0.405504]
[1762785533197,0.01,3590.9,3588.7,0.02786524]
[1762785533395,0.01,3590.9,3588.8,0.405504]
[1762785533622,0.01,3590.9,3589.1,0.405504]
[1762785533832,0.01,3590.9,3588.6,0.405504]
[1762785534032,0.01,3590.9,3588.7,0.405504]
[1762785534233,0.01,3590.9,3589.1,0.405504]
[1762785534409,0.01,3590.9,3589.3,0.405504]
[1762785535111,0.01,3590.9,3589.5,0.405504]
[1762785535494,0.01,3590.9,3589.3,2.78605812]
[1762785535495,0.01,3590.9,3589.3,0.405504]
[1762785537010,0.01,3590.9,3588.5,0.3192358]
[1762785537406,0.01,3590.9,3588.7,0.405504]
[1762785538113,0.01,3590.9,3588.6,0.67395658]
[1762785538437,0.01,3590.9,3588.8,0.405504]
[1762785538747,0.01,3590.9,3588.7,0.405504]
[1762785538916,0.01,3590.9,3588.8,0.13986964]
[1762785539942,0.01,3590.9,3587.9,4.04692793]
[1762785540104,0.01,3590.9,3587.9,1.259802]
[1762785540306,0.01,3590.9,3588.2,2.931]
[1762785540646,0.01,3590.9,3589.7,0.405504]
[1762785540647,0.011,3590.9,3589.7,0.405504]
[1762785541840,0.011,3590.9,3590.1,0.405504]
[1762785542002,0.011,3590.9,3588.1,0.01]
[1762785542402,0.011,3590.9,3588.3,0.405504]
[1762785543037,0.011,3590.9,3589.4,2.931]
[1762785543215,0.011,3590.9,3588.2,0.44624258]
[1762785543216,0.011,3590.9,3589.9,3.336504]
[1762785543429,0.011,3590.9,3590.1,0.405504]
[1762785543640,0.011,3590.9,3590.3,0.405504]
[1762785543812,0.011,3590.9,3588.3,0.405504]
[1762785544148,0.011,3590.9,3589.6,2.931]
[1762785544317,0.011,3590.9,3589.9,3.336504]
[1762785545567,0.011,3590.9,3589.8,0.405504]
[1762785546576,0.5049,3590.9,3589.8,0.405504]
[1762785546774,0.5049,3590.9,3588.2,0.44624258]
[1762785546975,0.5049,3590.9,3588.1,0.01]
[1762785547340,0.1,3590.1,3588.1,0.01]
[1762785547538,0.1,3589.9,3588.1,0.01]
[1762785547862,0.1,3589.6,3588.1,0.01]
[1762785548046,0.1823,3588.2,3588.1,0.01]
[1762785548251,0.8933,3588.2,3588.1,0.01]
[1762785548443,1.3872,3588.2,3588.1,0.01]
[1762785549937,0.1,3587.9,3585.4,0.002]
[1762785550150,0.1823,3587.2,3585.4,0.002]
[1762785550354,1.56653047,3587.2,3585.4,0.002]
[1762785550565,1.81280189,3587.1,3585.4,0.002]
[1762785550880,0.1,3586.9,3585.4,0.002]
[1762785551253,0.4939,3586.8,3585.4,0.002]
[1762785551456,1.970712,3586.7,3585.4,0.002]
[1762785551674,0.4939,3586.6,3585.4,0.002]
[1762785552239,0.1,3587.3,3585.4,0.002]
[1762785552450,0.71,3586.5,3586.3,0.405504]
[1762785552878,0.71,3586.5,3585.4,0.002]
[1762785553468,0.71,3586.5,3585.9,0.405504]
[1762785554509,0.4939,3587.0,3585.9,0.405504]
[1762785554796,0.71,3586.9,3586.8,0.405504]
[1762785556004,0.71,3586.9,3586.3,0.003]
[1762785556184,0.71,3586.9,3586.8,0.405504]
[1762785557300,0.71,3586.9,3586.3,0.003]
[1762785557682,0.4939,3588.0,3586.3,0.003]
[1762785557862,0.71,3587.9,3586.3,0.003]
[1762785558072,0.71,3587.9,3585.6,3.29774866]
[1762785558275,0.71,3587.9,3585.8,2.931]
[1762785559891,0.71,3587.9,3586.8,0.002]
[1762785560207,0.71,3587.9,3587.0,2.931]
[1762785560412,0.71,3587.9,3586.8,0.002]
[1762785560413,0.72,3587.9,3587.5,3.336504]
[1762785560627,0.01,3587.9,3587.7,3.336504]
[1762785560831,0.708,3589.1,3588.5,3.336504]
[1762785562192,0.708,3589.1,3586.8,0.002]
[1762785562393,0.708,3589.1,3588.4,0.405504]
[1762785562592,0.708,3589.1,3586.8,0.002]
[1762785562823,1.967712,3589.1,3586.8,0.002]
[1762785563127,0.4939,3588.8,3586.8,0.002]
[1762785563302,0.708,3589.1,3586.8,0.002]
[1762785563508,0.708,3589.1,3587.4,0.405504]
[1762785563707,0.708,3589.1,3588.0,0.405504]
[1762785563941,0.5039,3588.9,3588.0,0.405504]
[1762785564404,0.5039,3588.9,3587.6,0.405504]
[1762785564730,1.763612,3588.9,3586.8,0.002]
[1762785564930,0.5039,3588.9,3587.9,0.405504]
[1762785565140,0.4999,3588.8,3587.9,0.405504]
[1762785565445,0.4999,3588.8,3587.3,2.931]
[1762785565649,0.4999,3588.8,3587.5,0.405504]